bitfinex-derivatives/quotes_ETHF0:USTF0_20250331
["timestamp","ask_amount","ask_price","bid_price","bid_amount"]
[1743383358590,1.1072,1806.5,1806.4,1.8644]
[1743383359192,1.10738,1806.2,1806.1,3.21610197]
[1743383359398,1.10738,1806.2,1806.1,0.00830197]
[1743383359592,1.10736,1806.3,1806.1,0.00830197]
[1743383359795,1.8393,1806.4,1806.1,0.00830197]
[1743383359997,1.10738,1806.2,1806.1,0.00830197]
[1743383361294,1.10736,1806.3,1806.1,0.00830197]
[1743383361598,1.10738,1806.2,1806.1,3.21610197]
[1743383361798,1.10738,1806.2,1806.1,0.00830197]
[1743383362893,1.10738,1806.2,1805.3,3.2078]
[1743383362894,2.76861,1806.1,1805.3,3.2078]
[1743383363095,3.2078,1805.8,1805.4,1.9771]
[1743383363292,1.10778,1805.6,1805.4,5.1849]
[1743383363703,1.10781,1805.5,1805.4,1.9771]
[1743383364195,1.10787,1805.4,1805.3,0.00830197]
[1743383364394,2.76969,1805.4,1804.7,7.9978]
[1743383364595,1.8293,1805.3,1804.8,1.9771]
[1743383364804,1.10818,1804.9,1804.8,1.9771]
[1743383365998,1.10824,1804.8,1804.7,0.00553464]
[1743383368899,5.1335,1804.9,1804.7,0.00553464]
[1743383369100,1.10824,1804.8,1804.7,0.00553464]
[1743383369397,1.10849,1804.4,1804.3,3.2078]
[1743383369601,1.10855,1804.3,1804.2,2.0262]
[1743383369990,1.10868,1804.1,1803.9,3.2078]
[1743383370196,1.10868,1804.1,1804.0,2.0262]
[1743383370393,5.1247,1804.4,1804.0,2.0262]
[1743383370394,9.8737,1804.4,1804.0,2.0262]
[1743383370610,1.11697197,1804.2,1804.0,2.0262]
[1743383370901,1.10867,1804.1,1804.0,2.0262]
[1743383371100,5.1247,1804.1,1803.5,3.2078]
[1743383371294,1.9169,1804.1,1803.5,6.34299]
[1743383371497,1.10884,1803.9,1803.5,6.34299]
[1743383371696,4.743,1804.0,1803.5,5.234]
[1743383371697,7.9508,1804.0,1803.5,5.234]
[1743383371999,4.75030197,1804.2,1803.5,2.0262]
[1743383372304,5.85894197,1804.2,1803.8,3.2078]
[1743383372506,7.83554197,1804.2,1803.9,1.9357]
[1743383372703,1.10871,1804.1,1803.9,1.9357]
[1743383373005,4.74930197,1804.2,1803.9,1.9357]
[1743383373205,1.10871,1804.1,1803.9,1.9357]
[1743383373500,1.10871,1804.1,1803.6,3.2078]
[1743383373501,3.2078,1804.1,1803.6,3.2078]
[1743383373699,1.10889,1803.8,1803.7,1.9357]
[1743383374200,1.9766,1804.0,1803.4,3.2078]
[1743383374201,4.737,1803.9,1803.4,3.2078]
[1743383374405,3.08555,1803.7,1803.5,1.9357]
[1743383374804,1.10898,1803.6,1803.5,1.9357]
[1743383375109,3.08554,1803.7,1803.5,1.9357]
[1743383375402,1.10907,1803.5,1803.2,3.2078]
[1743383375603,1.9766,1803.7,1803.3,2.0259]
[1743383375803,5.1844,1803.7,1803.3,2.0259]
[1743383375995,1.1091,1803.4,1803.3,2.0259]
[1743383376196,1.10908,1803.5,1803.3,2.0259]
[1743383376400,1.10902,1803.6,1803.3,2.0259]
[1743383376601,1.10906,1803.5,1803.3,2.0259]
[1743383376796,1.109,1803.6,1803.3,2.0259]
[1743383376998,1.109,1803.6,1803.4,3.2078]
[1743383377201,1.109,1803.6,1803.5,2.0259]
[1743383377402,1.9301,1803.6,1803.1,5.1532]
[1743383377606,1.9301,1803.6,1803.3,3.2078]
[1743383377901,5.085,1804.0,1803.4,1.8697]
[1743383378110,3.775,1804.0,1803.5,3.2078]
[1743383378311,3.775,1804.0,1803.6,1.8697]
[1743383378503,1.8978,1804.0,1803.7,3.2078]
[1743383378696,1.10883,1803.9,1803.8,1.8697]
[1743383379298,1.10879,1803.9,1803.8,1.8697]
[1743383379708,4.723,1804.1,1803.8,1.8697]
[1743383379914,4.723,1804.1,1803.8,5.0775]
[1743383380107,4.723,1804.1,1803.8,1.8697]
[1743383380303,4.723,1804.1,1803.9,1.8697]
[1743383380502,1.10873,1804.0,1803.9,1.8697]
[1743383380703,1.11693197,1804.2,1803.9,1.8697]
[1743383380904,1.11693197,1804.2,1803.9,2.97847]
[1743383381106,1.11693197,1804.2,1803.9,1.8697]
[1743383381312,1.11693197,1804.2,1804.0,3.2078]
[1743383381511,1.11693197,1804.2,1804.1,1.8918]
[1743383382012,0.00830197,1804.2,1804.1,3.00047]
[1743383382224,0.00830197,1804.2,1804.1,1.8918]
[1743383384818,0.00830197,1804.2,1804.1,3.00047]
[1743383385008,0.00830197,1804.2,1804.1,1.8918]
[1743383385414,0.00830197,1804.2,1804.1,3.00047]
[1743383385617,0.00830197,1804.2,1804.1,1.8918]
[1743383386013,0.00830197,1804.2,1804.1,3.00047]
[1743383386415,3.2078,1804.9,1804.4,1.10844]
[1743383386612,1.10836,1804.6,1804.5,1.8741]
[1743383388613,2.95806,1804.6,1804.5,1.8741]
[1743383391416,1.10857,1804.3,1804.1,3.2078]
[1743383391612,1.10857,1804.3,1804.2,1.9909]
[1743383391812,1.1085,1804.4,1804.2,1.9909]
[1743383392111,6.4727,1804.6,1804.2,1.9909]
[1743383392112,1.10855,1804.3,1804.2,1.9909]
[1743383392311,3.04865,1804.3,1804.2,1.9909]
[1743383393309,3.04865,1804.3,1804.0,0.00830197]
[1743383393310,1.10867,1804.1,1804.0,0.00830197]
[1743383394020,4.31647,1804.1,1804.0,0.00830197]
[1743383394814,6.5471,1804.3,1804.0,3.21610197]
[1743383394815,1.9401,1804.3,1804.0,3.21610197]
[1743383395009,1.10861,1804.2,1804.1,2.0389]
[1743383395412,1.10867,1804.1,1804.0,0.00830197]
[1743383396114,5.71167,1804.1,1804.0,0.00830197]
[1743383396616,1.10863,1804.2,1804.0,0.00830197]
[1743383396822,1.10867,1804.1,1804.0,0.00830197]
[1743383399020,6.26837,1804.1,1804.0,0.00830197]
[1743383400416,6.26837,1804.1,1803.7,1.9658]
[1743383400417,1.10885,1803.8,1803.7,1.9658]
[1743383400624,4.568,1804.0,1803.7,6.2825]
[1743383400818,6.5805,1804.4,1803.7,5.1736]
[1743383401024,1.10869,1804.1,1803.9,1.10876]
[1743383401326,1.10865,1804.2,1804.0,1.9658]
[1743383401625,1.10867,1804.1,1804.0,1.9658]
[1743383402725,1.10844,1804.5,1804.0,1.9658]
[1743383402931,1.10849,1804.4,1804.2,1.10857]
[1743383403131,1.10849,1804.4,1804.3,1.896]
[1743383403325,1.10844,1804.5,1804.3,6.21234]
[1743383403522,7.54701,1804.6,1804.3,6.21234]
[1743383403724,2.98001,1804.6,1804.4,1.896]
[1743383403927,0.00830197,1804.7,1804.5,3.2078]
[1743383404223,0.00830197,1804.7,1804.6,1.896]
[1743383405119,1.11660197,1804.7,1804.6,1.896]
[1743383405428,1.10849,1804.4,1804.3,3.2078]
[1743383405624,1.10849,1804.4,1804.3,5.2319]
[1743383406331,0.00830197,1804.7,1804.3,5.2319]
[1743383406639,1.10838,1804.6,1804.4,5.2319]
[1743383406929,0.00830197,1804.7,1804.5,1.10842]
[1743383407124,0.00830197,1804.7,1804.6,5.2319]
[1743383408317,0.00830197,1804.7,1804.6,2.0241]
[1743383408318,1.11660197,1804.7,1804.6,2.0241]
[1743383408523,0.00830197,1804.7,1804.6,5.2319]
[1743383408719,1.11660197,1804.7,1804.6,2.0241]
[1743383409328,1.11660197,1804.7,1804.6,5.2319]
[1743383409625,0.00830197,1804.7,1804.6,5.2319]
[1743383409832,1.11660197,1804.7,1804.6,5.2319]
[1743383410030,0.00830197,1804.7,1804.6,6.34026]
[1743383410228,0.00830197,1804.7,1804.6,9.39466]
[1743383410527,3.2078,1805.6,1804.9,1.10816]
[1743383410528,1.10807,1805.1,1804.9,1.10816]
[1743383410730,4.531,1805.4,1804.6,11.05721]
[1743383410731,1.9874,1805.7,1805.0,5.1556]
[1743383410925,6.3927,1805.7,1805.4,3.2078]
[1743383411125,1.10775,1805.6,1805.5,1.9165]
[1743383411331,5.97725,1805.6,1805.0,3.2078]
[1743383411532,7.50551,1805.5,1805.4,0.00830197]
[1743383411726,1.10806,1805.1,1805.0,1.9165]
[1743383411931,11.15475,1805.5,1804.8,3.2078]
[1743383411932,1.10813,1805.0,1804.8,3.2078]
[1743383412128,1.10813,1805.0,1804.9,1.9165]
[1743383412634,1.10808,1805.1,1804.9,1.9165]
[1743383412836,1.10807,1805.1,1804.9,1.9165]
[1743383413027,2.96667,1805.3,1805.0,4.31588]
[1743383413227,2.96667,1805.3,1805.1,1.9165]
[1743383413424,6.2875,1805.4,1805.1,3.02453]
[1743383413630,1.10783,1805.5,1805.3,3.2078]
[1743383414024,7.5694,1805.5,1804.7,3.06938]
[1743383414229,1.1082,1804.9,1804.8,1.8775]
[1743383414431,1.10815,1805.0,1804.8,1.8775]
[1743383414738,1.8616,1805.1,1804.8,5.0853]
[1743383414936,1.10816,1805.0,1804.9,1.8775]
[1743383415133,1.8616,1805.1,1804.9,1.8775]
[1743383415335,1.10812,1805.0,1804.9,1.8775]
[1743383415935,1.8616,1805.1,1804.8,3.2078]
[1743383416135,5.0694,1804.9,1804.3,1.8615]
[1743383416342,3.2078,1804.6,1804.3,1.8615]
[1743383416536,0.00830197,1804.8,1804.5,3.2078]
[1743383416737,0.00830197,1804.8,1804.6,1.8775]
[1743383416932,1.1083,1804.7,1804.6,1.8775]
[1743383417240,2.97818197,1804.8,1804.6,1.8775]
[1743383417537,2.97817197,1804.8,1804.6,1.8775]
[1743383417742,0.00830197,1804.8,1804.6,1.8775]
[1743383417939,1.1083,1804.7,1804.6,1.8775]
[1743383418134,1.10845,1804.5,1804.3,5.0693]
[1743383418333,1.10845,1804.5,1804.4,1.9744]
[1743383419433,1.10842,1804.5,1804.4,1.9744]
[1743383420531,3.00501,1804.7,1804.4,1.9744]
[1743383420736,1.8967,1804.7,1804.4,3.08285]
[1743383420939,3.00505,1804.7,1804.5,3.2078]
[1743383421242,3.00505,1804.7,1804.6,1.8492]
[1743383421444,0.00830197,1804.8,1804.6,1.8492]
[1743383421743,0.00830197,1804.8,1804.6,2.95752]
[1743383421934,0.00830197,1804.8,1804.7,1.1083]
[1743383422133,0.00830197,1804.8,1804.7,2.9575]
[1743383426241,1.11654197,1804.8,1804.7,1.8492]
[1743383426443,1.11654197,1804.8,1804.1,3.2078]
[1743383426444,2.77077,1804.7,1804.1,3.2078]
[1743383426647,1.10857,1804.3,1804.2,2.0435]
[1743383427041,1.10852,1804.4,1804.2,2.0435]
[1743383427549,1.10855,1804.3,1804.2,2.0435]
[1743383427747,1.10852,1804.4,1804.2,5.2513]
[1743383427949,2.98527,1804.6,1804.2,5.2513]
[1743383428148,0.00830197,1804.8,1804.4,3.2078]
[1743383428443,0.00830197,1804.8,1804.7,1.1083]
[1743383429049,0.00830197,1804.8,1804.7,3.1518]
[1743383429254,0.00830197,1804.8,1804.7,2.0435]
[1743383429545,1.11654197,1804.8,1804.7,2.0435]
[1743383429748,0.00830197,1804.8,1804.7,2.0435]
[1743383430051,0.00830197,1804.8,1804.7,3.1518]
[1743383431649,0.00830197,1804.8,1804.7,2.0435]
[1743383431850,0.00830197,1804.8,1804.7,3.1518]
[1743383433750,19.5225945,1805.3,1805.2,1.10799]
[1743383433956,19.5225945,1805.3,1805.2,4.31579]
[1743383434154,19.5225945,1805.5,1805.3,1.10793]
[1743383434349,19.5225945,1805.5,1805.4,1.10787]
[1743383434551,19.5225945,1805.5,1805.4,4.31567]
[1743383436754,0.00830197,1805.6,1805.4,3.2078]
[1743383437059,0.00830197,1805.6,1805.5,1.8411]
[1743383437255,1.11605197,1805.6,1805.5,1.8411]
[1743383437451,0.00830197,1805.6,1805.5,2.94891]
[1743383437651,0.00830197,1805.6,1805.5,1.8411]
[1743383438054,0.00830197,1805.6,1805.5,2.94891]
[1743383438261,0.00830197,1805.6,1805.5,6.15671]
[1743383438652,19.5225945,1806.1,1806.0,1.1075]
[1743383438849,19.5225945,1806.1,1806.0,4.3153]
[1743383439566,19.50875789,1806.1,1806.0,11.2183]
[1743383439764,16.44165789,1806.1,1806.0,18.49869896]
[1743383440055,13.37435789,1806.1,1806.0,20.79128445]
[1743383440361,0.00830197,1806.2,1806.0,20.79128445]
[1743383440362,19.2679577,1806.3,1806.2,1.10738]
[1743383440550,19.2679577,1806.3,1806.2,4.31518]
[1743383440755,3.12881,1806.7,1806.4,1.10723]
[1743383441055,1.10714,1806.6,1806.4,3.2078]
[1743383441356,3.1366,1806.5,1806.4,3.2078]
[1743383441549,2.0294,1806.5,1806.3,0.00830197]
[1743383441755,2.0294,1806.5,1806.4,3.2078]
[1743383442052,2.0294,1806.5,1806.4,1.10726]
[1743383442259,2.0294,1806.5,1806.3,1.11559197]
[1743383442459,1.10726,1806.4,1806.3,0.00830197]
[1743383442852,1.10726,1806.4,1806.0,4.387]
[1743383442853,5.2372,1806.4,1806.0,4.31527]
[1743383443058,1.10732,1806.3,1806.0,4.3153]
[1743383443261,1.1072,1806.5,1806.0,3.2078]
[1743383443458,1.1072,1806.5,1806.2,1.10735]
[1743383443459,2.0294,1806.4,1806.2,1.10735]
[1743383444163,2.0294,1806.4,1806.3,3.2078]
[1743383444562,4.39230197,1806.7,1806.3,3.2078]
[1743383444563,1.11539197,1806.7,1806.3,3.2078]
[1743383444862,2.02370197,1806.7,1806.5,1.10717]
[1743383445060,3.13080197,1806.7,1806.5,1.10719]
[1743383445362,2.02370197,1806.7,1806.5,1.10718]
[1743383445670,2.02370197,1806.7,1806.6,1.10714]
[1743383445857,0.00830197,1806.7,1806.6,1.10714]
[1743383446052,0.00830197,1806.7,1806.6,4.31494]
[1743383446564,0.00830197,1806.7,1806.6,6.76520072]
[1743383446964,0.00830197,1806.7,1806.6,6.31854]
[1743383447259,0.00830197,1806.7,1806.6,3.2078]
[1743383447466,2.04330197,1806.7,1806.6,3.2078]
[1743383447765,3.15037197,1806.7,1806.6,3.2078]
[1743383447964,2.04330197,1806.7,1806.6,3.2078]
[1743383448862,3.15037197,1806.7,1806.6,3.2078]
[1743383449067,1.10717,1806.6,1806.3,4.31509]
[1743383449367,1.9476,1806.6,1806.5,1.1072]
[1743383449553,1.9476,1806.6,1806.5,4.315]
[1743383450160,1.9476,1806.6,1806.5,3.2078]
[1743383450557,1.9476,1806.6,1806.5,6.2342]
[1743383450755,3.8524,1806.6,1806.5,6.2342]
[1743383451866,0.00830197,1806.7,1806.6,1.10714]
[1743383453567,0.00830197,1806.7,1806.6,8.17088545]
[1743383453967,0.00830197,1806.7,1806.6,10.67088545]
[1743383456667,0.00830197,1806.7,1806.6,11.22448545]
[1743383457869,0.00830197,1806.7,1806.6,8.72448545]
[1743383458067,0.00830197,1806.7,1806.6,8.17088545]
[1743383458366,0.00830197,1806.7,1806.6,12.53488545]
[1743383459568,0.00830197,1806.7,1806.6,5.47114]
[1743383459970,0.00830197,1806.7,1806.6,1.10714]
[1743383460169,2.00700197,1806.7,1806.6,1.10714]
[1743383460468,0.00830197,1806.7,1806.6,1.10714]
[1743383461171,2.00700197,1806.7,1806.6,1.10714]
[1743383461474,2.00700197,1806.7,1806.5,3.2078]
[1743383461675,2.00700197,1806.7,1806.0,3.7558515]
[1743383461676,2.00700197,1806.7,1806.2,3.2078]
[1743383461978,2.00700197,1806.7,1806.4,3.2078]
[1743383462274,2.00700197,1806.7,1806.6,4.31494]
[1743383462979,0.00830197,1806.7,1806.6,4.31494]
[1743383463175,1.89150197,1806.7,1806.6,4.31494]
[1743383463375,1.89150197,1806.7,1806.4,7.5708]
[1743383463569,2.99861197,1806.7,1806.5,1.10717]
[1743383463770,2.99861197,1806.7,1806.4,4.31504]
[1743383463771,1.10718,1806.6,1806.4,4.31504]
[1743383463968,2.9904,1806.5,1806.3,1.10726]
[1743383464179,1.10726,1806.4,1806.3,3.2078]
[1743383464375,3.7283,1806.4,1806.1,1.11570197]
[1743383464579,1.1075,1806.0,1805.9,3.2078]
[1743383464874,5.97641,1806.1,1805.3,3.2078]
[1743383465074,1.8832,1805.9,1805.4,1.10787]
[1743383465375,1.8521,1805.8,1805.7,1.10769]
[1743383465578,1.8521,1805.8,1805.5,5.1603]
[1743383465774,1.8521,1805.8,1805.6,1.11605197]
[1743383465775,1.924,1805.7,1805.6,1.11605197]
[1743383466074,1.8521,1805.8,1805.7,4.31549]
[1743383466273,3.7761,1805.8,1805.7,6.26799]
[1743383466782,0.00830197,1805.9,1805.8,1.10763]
[1743383467480,0.00830197,1805.9,1805.8,8.40148387]
[1743383468180,0.00830197,1805.9,1805.8,10.90148387]
[1743383469282,0.00830197,1805.9,1805.8,1.10763]
[1743383469471,0.00830197,1805.9,1805.7,3.2078]
[1743383469677,0.00830197,1805.9,1805.8,1.10763]
[1743383469878,0.00830197,1805.9,1805.8,2.97773]
[1743383470182,0.00830197,1805.9,1805.8,12.82088724]
[1743383470580,1.8769,1806.3,1806.2,1.10738]
[1743383470782,1.8769,1806.3,1806.2,4.31518]
[1743383470982,1.8769,1806.3,1806.2,3.2078]
[1743383471187,4.95704,1806.3,1806.0,4.31526]
[1743383471570,4.95704,1806.3,1806.1,1.10744]
[1743383471780,1.10738,1806.2,1806.0,4.31527]
[1743383471977,1.9986,1806.1,1806.0,4.31527]
[1743383473387,1.98110197,1806.3,1806.2,1.10738]
[1743383473585,1.98110197,1806.3,1806.2,4.31518]
[1743383473785,0.00830197,1806.3,1806.2,4.86958]
[1743383473984,0.00830197,1806.3,1806.2,13.99397327]
[1743383474183,1.11562197,1806.3,1806.2,3.2078]
[1743383474485,0.00830197,1806.3,1806.2,3.2078]
[1743383474682,1.11562197,1806.3,1806.2,3.2078]
[1743383475288,1.11562197,1806.3,1806.1,1.10744]
[1743383475489,3.9498,1806.2,1806.1,1.10744]
[1743383475784,1.97e-06,1806.3,1806.2,8.79757878]
[1743383475987,1.9242,1807.4,1806.7,1.10707]
[1743383476190,2.0256,1807.3,1807.2,1.10674]
[1743383476389,2.0256,1807.3,1807.2,1.10677]
[1743383477187,2.0256,1807.3,1807.1,1.99710197]
[1743383477384,3.95460197,1807.4,1807.3,1.10671]
[1743383477385,1.93250197,1807.4,1807.3,1.10671]
[1743383477785,1.93250197,1807.4,1807.3,2.94841]
[1743383477982,0.00830197,1807.4,1807.3,7.31241]
[1743383478291,0.00830197,1807.4,1807.3,14.48910121]
[1743383478588,1.851,1807.9,1807.8,1.1064]
[1743383478792,1.851,1807.9,1807.8,3.2078]
[1743383479088,1.851,1807.9,1807.8,4.3142]
[1743383479289,3.7388,1807.9,1807.8,4.3142]
[1743383479784,3.7388,1807.9,1807.6,7.5718]
[1743383479988,1.10642,1807.8,1807.6,4.364]
[1743383480187,2.99427,1807.7,1807.4,18.86741]
[1743383480378,1.8878,1807.7,1807.4,10.51911]
[1743383480584,1.10656,1807.6,1807.4,7.5708]
[1743383480885,1.10656,1807.6,1807.4,3.2078]
[1743383480886,2.0204,1807.5,1807.4,3.2078]
[1743383481081,3.12698,1807.5,1807.4,3.2078]
[1743383481283,3.12698,1807.5,1807.1,0.00830197]
[1743383481284,1.10677,1807.2,1807.1,0.00830197]
[1743383481491,1.10677,1807.2,1806.9,3.2078]
[1743383481492,1.10685,1807.1,1806.9,3.2078]
[1743383481675,3.12725,1807.1,1806.9,3.2078]
[1743383481874,2.0204,1807.1,1806.5,0.5536]
[1743383482088,1.10724,1806.5,1806.1,4.9156]
[1743383482281,6.33548,1806.4,1806.1,1.10743]
[1743383482783,1.10733,1806.3,1806.1,0.00830197]
[1743383483090,2.0204,1806.2,1806.1,0.00830197]
[1743383483283,2.0204,1806.2,1805.6,6.33481239]
[1743383483284,5.2282,1806.2,1805.6,0.5544]
[1743383483593,3.2078,1806.0,1805.5,2.4043]
[1743383483887,1.9355,1805.9,1805.8,1.10763]
[1743383484086,1.9355,1805.9,1805.7,1.10765]
[1743383484288,1.9355,1805.9,1805.6,4.362]
[1743383484485,1.9355,1805.9,1805.8,1.10763]
[1743383484688,1.9355,1805.9,1805.7,1.847]
[1743383484989,3.04308,1805.9,1805.6,5.47802197]
[1743383485383,1.9355,1805.9,1805.7,1.10768]
[1743383485584,1.9355,1805.9,1805.8,1.10763]
[1743383488399,3.2078,1806.0,1805.9,1.10756]
[1743383488691,1.9414,1806.3,1805.9,1.10756]
[1743383488692,5.0989,1806.3,1806.2,1.10738]
[1743383488991,0.00830197,1806.4,1806.3,1.10732]
[1743383489191,0.00830197,1806.4,1806.3,3.01802]
[1743383489593,0.00830197,1806.4,1806.0,3.2078]
[1743383489594,3.21610197,1806.4,1806.0,7.5708]
[1743383489891,1.8911,1806.3,1806.1,1.10741]
[1743383490594,2.99844,1806.3,1806.0,9.4815]
[1743383490891,2.99844,1806.3,1806.0,10.58895]
[1743383491093,1.8911,1806.3,1806.1,1.10744]
[1743383491284,2.99842,1806.3,1806.0,9.4815]
[1743383491489,1.8911,1806.3,1806.0,9.4815]
[1743383491688,1.8911,1806.3,1806.2,1.10738]
[1743383492095,1.8911,1806.3,1806.1,1.1074]
[1743383492295,2.99842,1806.3,1806.0,10.58897]
[1743383492597,1.8911,1806.3,1806.1,1.10744]
[1743383493297,1.8911,1806.3,1806.0,9.4815]
[1743383493798,1.8911,1806.3,1806.0,3.2078]
[1743383493996,1.10759,1805.9,1805.7,3.2078]
[1743383494198,1.889,1805.8,1805.7,3.2078]
[1743383494499,1.889,1805.8,1805.7,4.31548]
[1743383494900,7.13952197,1806.4,1806.0,1.1075]
[1743383494901,3.21610197,1806.4,1806.0,1.1075]
[1743383495101,1.889,1806.1,1806.0,1.1075]
[1743383495602,2.99645,1806.1,1805.9,1.10752]
[1743383495903,1.889,1806.1,1805.9,1.10752]
[1743383496098,1.889,1806.1,1805.9,1.10755]
[1743383496301,2.99645,1806.1,1805.9,1.10755]
[1743383497603,1.889,1806.1,1806.0,1.1075]
[1743383497805,0.00830197,1806.4,1806.3,1.10732]
[1743383498008,0.00830197,1806.4,1806.1,5.2232]
[1743383498215,0.00830197,1806.4,1806.3,4.31512]
[1743383498503,0.00830197,1806.4,1806.3,1.10732]
[1743383499204,1.90490197,1806.4,1806.3,1.10732]
[1743383502407,1.90490197,1806.4,1806.3,4.31512]
[1743383504207,4.362,1806.9,1806.3,4.31512]
[1743383504208,1.9986,1807.0,1806.9,1.10695]
[1743383504407,3.2078,1807.6,1806.9,1.10695]
[1743383504609,3.2078,1807.8,1807.7,1.10646]
[1743383504811,2.0078,1807.9,1807.5,3.2078]
[1743383505112,2.0078,1807.7,1807.6,1.10652]
[1743383505411,2.0078,1807.7,1807.5,4.32267197]
[1743383506412,1.10652,1807.6,1807.5,0.00830197]
[1743383506614,2.0078,1807.7,1807.5,1.11485197]
[1743383506908,1.10652,1807.6,1807.5,0.00830197]
[1743383507111,2.0078,1807.7,1807.5,0.00830197]
[1743383507309,4.31432,1807.6,1807.5,0.00830197]
[1743383507706,2.76668,1807.4,1806.7,3.2078]
[1743383507912,3.2078,1807.2,1806.7,3.2078]
[1743383508109,1.9895,1807.1,1807.0,1.10687]
[1743383508312,1.9895,1807.1,1806.9,1.10691]
[1743383508716,3.09634,1807.1,1806.9,1.10691]
[1743383509011,1.9895,1807.1,1806.8,1.98910197]
[1743383509214,1.9895,1807.1,1806.9,1.10695]
[1743383509613,1.9895,1807.1,1807.0,1.10689]
[1743383509816,1.9895,1807.1,1807.0,2.044]
[1743383510218,1.9895,1807.1,1806.8,0.00830197]
[1743383510418,1.10695,1806.9,1806.8,0.00830197]
[1743383510919,3.07322,1807.0,1806.8,0.00830197]
[1743383511120,2.0525,1806.9,1806.8,0.00830197]
[1743383511814,3.15945,1806.9,1806.8,0.00830197]
[1743383512811,2.0525,1806.9,1806.8,1.11531197]
[1743383513307,2.0525,1806.9,1806.8,0.00830197]
[1743383513511,3.15945,1806.9,1806.8,0.00830197]
[1743383514321,2.0525,1806.9,1806.8,1.11531197]
[1743383514913,1.9663,1807.0,1806.9,1.10695]
[1743383515722,1.9282,1807.0,1806.9,1.10695]
[1743383516518,1.9282,1807.0,1806.8,1.91820197]
[1743383516519,1.10695,1806.9,1806.8,0.00830197]
[1743383516824,6.68169,1806.9,1806.3,1.9099]
[1743383517023,1.10745,1806.1,1805.9,4.31534]
[1743383517228,1.9282,1806.0,1805.9,1.10754]
[1743383517925,0.00830197,1806.1,1806.0,1.1075]
[1743383518129,0.00830197,1806.1,1806.0,8.6753]
[1743383518319,0.00830197,1806.1,1806.0,20.26164857]
[1743383518518,3.07534,1806.8,1806.6,1.10713]
[1743383519623,1.10708,1806.7,1806.5,3.05625]
[1743383519820,1.9683,1806.8,1806.0,3.2078]
[1743383519821,1.9683,1806.6,1806.0,3.2078]
[1743383520030,1.10724,1806.5,1806.3,1.10731]
[1743383520225,1.9683,1806.4,1806.2,1.10734]
[1743383520415,1.9683,1806.4,1806.1,1.9491]
[1743383520619,1.9683,1806.4,1806.3,1.10732]
[1743383521024,3.07556,1806.4,1806.1,3.0565]
[1743383521427,1.10756,1805.9,1805.8,0.00830197]
[1743383521625,1.10778,1805.6,1805.3,1.10787]
[1743383521824,1.10778,1805.6,1805.4,1.10785]
[1743383522032,1.8955,1805.5,1805.4,1.10785]
[1743383522331,1.8955,1805.5,1805.3,1.10788]
[1743383522516,1.8955,1805.5,1805.2,5.7594]
[1743383522720,1.8955,1805.5,1805.4,1.10787]
[1743383522918,1.8955,1805.5,1805.3,1.10789]
[1743383523232,3.00332,1805.5,1805.3,1.10789]
[1743383523418,1.10789,1805.4,1805.2,1.11626197]
[1743383523625,1.9515,1805.3,1805.2,1.11626197]
[1743383524223,3.05943,1805.3,1805.2,0.00830197]
[1743383524425,4.4515,1805.3,1804.9,3.2078]
[1743383524624,1.1081,1805.1,1804.9,3.2078]
[1743383524925,1.9515,1805.0,1804.9,3.2078]
[1743383526419,3.22125438,1805.8,1804.9,3.2078]
[1743383526420,3.21610197,1805.6,1804.9,5.1789]
[1743383526636,1.9654,1805.5,1805.4,1.10787]
[1743383526822,3.2078,1806.0,1805.2,3.2078]
[1743383526823,3.2078,1805.7,1805.3,1.8862]
[1743383527022,7.5678,1805.7,1805.3,1.8862]
[1743383527228,1.10789,1805.4,1805.1,1.108]
[1743383527427,7.5678,1805.7,1805.0,3.2078]
[1743383527428,1.10793,1805.3,1805.2,27.6]
[1743383527632,1.10793,1805.3,1805.0,3.2078]
[1743383527633,1.10806,1805.1,1805.0,3.2078]
[1743383528127,1.10812,1805.0,1804.9,0.00830197]
[1743383528428,1.9518,1805.0,1804.9,0.00830197]
[1743383528729,0.00830197,1805.2,1804.9,3.21610197]
[1743383528927,0.00830197,1805.2,1805.0,2.99427]
[1743383529130,1.11632197,1805.2,1805.0,1.8862]
[1743383529331,1.11632197,1805.2,1805.0,1.10811]
[1743383529529,1.11632197,1805.2,1805.0,3.15241]
[1743383529826,1.11631197,1805.2,1805.0,3.15241]
[1743383530028,1.10806,1805.1,1804.9,0.00830197]
[1743383530229,3.01542,1805.0,1804.9,0.00830197]
[1743383530428,0.00830197,1805.2,1805.1,1.10806]
[1743383530634,0.00830197,1805.2,1805.0,3.15239]
[1743383531025,1.91560197,1805.2,1805.0,30.75239]
[1743383531231,3.02363197,1805.2,1805.0,29.6443]
[1743383531525,1.91560197,1805.2,1805.0,1.10812]
[1743383531730,1.91560197,1805.2,1805.0,3.15242]
[1743383531923,3.02360197,1805.2,1805.0,2.0443]
[1743383532130,1.10812,1805.0,1804.9,0.00830197]
[1743383532930,1.10829,1804.8,1804.5,1.1084]
[1743383533129,1.1083,1804.7,1804.6,1.8845]
[1743383533336,3.9567,1804.9,1804.6,1.8845]
[1743383533532,1.1083,1804.7,1804.6,1.8845]
[1743383533738,1.1083,1804.7,1804.4,3.2078]
[1743383533739,1.10841,1804.6,1804.4,4.31627]
[1743383534033,4.31569,1805.4,1804.6,10.00791445]
[1743383534231,5.1252,1805.4,1805.1,1.10806]
[1743383534433,9.5904,1805.9,1805.1,4.31586]
[1743383534733,10.2194,1805.9,1805.4,1.10785]
[1743383534939,13.4272,1805.9,1805.2,1.10797]
[1743383535236,3.2078,1805.8,1805.2,1.8845]
[1743383535429,3.02513,1805.7,1805.4,1.10784]
[1743383535629,3.03343197,1805.7,1805.5,1.9414]
[1743383536334,1.10775,1805.6,1805.5,1.9414]
[1743383536533,0.00830197,1805.7,1805.6,1.10775]